[Event "*** Titled Tuesday Blitz"]
[Site "Chess.com"]
[Date "2021.02.02"]
[Round "3"]
[White "Pantata007"]
[Black "Squirlolz"]
[Result "0-1"]
[WhiteElo "2244"]
[BlackElo "2482"]
[TimeControl "180+1"]
[EndTime "10:28:47 PST"]
[Termination "Squirlolz won by resignation"]

1. d4 {[%clk 0:03:00.9]} 1... e6 {[%clk 0:02:57.4]} 2. c4 {[%clk 0:03:00.5]}
2... b6 {[%clk 0:02:57.9]} 3. e4 {[%clk 0:02:59]} 3... Bb7 {[%clk 0:02:58.4]} 4.
Bd3 {[%clk 0:02:59.1]} 4... Nc6 {[%clk 0:02:58.5]} 5. Nf3 {[%clk 0:02:44.3]}
5... Nb4 {[%clk 0:02:58.6]} 6. O-O {[%clk 0:02:41.6]} 6... g6 {[%clk 0:02:58.1]}
7. Nc3 {[%clk 0:02:40.2]} 7... Nxd3 {[%clk 0:02:58.2]} 8. Qxd3 {[%clk
0:02:39.9]} 8... Bg7 {[%clk 0:02:59.1]} 9. Bg5 {[%clk 0:02:37.4]} 9... Ne7
{[%clk 0:02:59.4]} 10. e5 {[%clk 0:02:32.8]} 10... O-O {[%clk 0:02:56.4]} 11.
Ne4 {[%clk 0:02:32.5]} 11... Bxe4 {[%clk 0:02:54]} 12. Qxe4 {[%clk 0:02:32.2]}
12... f5 {[%clk 0:02:53.3]} 13. Qh4 {[%clk 0:02:17]} 13... Rf7 {[%clk 0:02:52]}
14. d5 {[%clk 0:02:13.1]} 14... Qf8 {[%clk 0:02:46.3]} 15. Rad1 {[%clk
0:01:49.6]} 15... Re8 {[%clk 0:02:28]} 16. dxe6 {[%clk 0:01:38.7]} 16... dxe6
{[%clk 0:02:27.2]} 17. Rd7 {[%clk 0:01:37.7]} 17... h6 {[%clk 0:02:26.1]} 18.
Bxe7 {[%clk 0:00:49.7]} 18... Rexe7 {[%clk 0:02:22.2]} 19. Rxe7 {[%clk
0:00:49.1]} 19... Rxe7 {[%clk 0:02:19.1]} 20. Rd1 {[%clk 0:00:48.2]} 20... Qe8
{[%clk 0:02:16.8]} 21. Qd4 {[%clk 0:00:43.6]} 21... Qc6 {[%clk 0:02:10.4]} 22.
h4 {[%clk 0:00:42]} 22... Kf7 {[%clk 0:02:10]} 23. b3 {[%clk 0:00:31.5]} 23...
Bf8 {[%clk 0:02:05.7]} 24. g3 {[%clk 0:00:27.8]} 24... Qxf3 {[%clk 0:02:04.3]}
0-1

[Event "*** Titled Tuesday Blitz"]
[Site "Chess.com"]
[Date "2021.02.02"]
[Round "3"]
[White "Supernotar"]
[Black "jpS520"]
[Result "1-0"]
[WhiteElo "2774"]
[BlackElo "2276"]
[TimeControl "180+1"]
[EndTime "10:28:51 PST"]
[Termination "Supernotar won by resignation"]

1. d4 {[%clk 0:03:00.9]} 1... Nf6 {[%clk 0:02:56.7]} 2. c4 {[%clk 0:03:00.9]}
2... e6 {[%clk 0:02:56.9]} 3. Nf3 {[%clk 0:03:00.8]} 3... b6 {[%clk 0:02:56.9]}
4. g3 {[%clk 0:03:00.8]} 4... Bb4+ {[%clk 0:02:56.7]} 5. Nbd2 {[%clk 0:03:00.5]}
5... Ba6 {[%clk 0:02:54.7]} 6. Qc2 {[%clk 0:03:00.4]} 6... c5 {[%clk 0:02:54.4]}
7. Bg2 {[%clk 0:03:00.2]} 7... Bb7 {[%clk 0:02:52.4]} 8. O-O {[%clk 0:03:00.1]}
8... cxd4 {[%clk 0:02:52.2]} 9. Nxd4 {[%clk 0:03:00.4]} 9... Bxg2 {[%clk
0:02:51.5]} 10. Kxg2 {[%clk 0:03:01.3]} 10... O-O {[%clk 0:02:51.2]} 11. b3
{[%clk 0:03:01]} 11... Nc6 {[%clk 0:02:50.8]} 12. Bb2 {[%clk 0:03:00.3]} 12...
Nxd4 {[%clk 0:02:48.2]} 13. Bxd4 {[%clk 0:03:00.9]} 13... Qe7 {[%clk 0:02:47.5]}
14. Rfd1 {[%clk 0:02:53.6]} 14... Rac8 {[%clk 0:02:45.3]} 15. Qb2 {[%clk
0:02:48.4]} 15... Bc5 {[%clk 0:02:43.5]} 16. Nf3 {[%clk 0:02:38]} 16... Bxd4
{[%clk 0:02:41.9]} 17. Rxd4 {[%clk 0:02:33.3]} 17... d5 {[%clk 0:02:41.5]} 18.
Ne5 {[%clk 0:02:30.7]} 18... dxc4 {[%clk 0:02:39.8]} 19. Nxc4 {[%clk 0:02:28.6]}
19... Rfd8 {[%clk 0:02:37.8]} 20. Rad1 {[%clk 0:02:25.3]} 20... h6 {[%clk
0:02:28]} 21. Nd6 {[%clk 0:02:22.6]} 21... Rb8 {[%clk 0:02:20.6]} 22. e4 {[%clk
0:02:20.4]} 22... Ne8 {[%clk 0:02:13.6]} 23. e5 {[%clk 0:02:15.6]} 23... Nxd6
{[%clk 0:02:13]} 24. exd6 {[%clk 0:02:15.5]} 24... Qd7 {[%clk 0:02:12.8]} 25.
Rg4 {[%clk 0:02:09.4]} 25... f5 {[%clk 0:01:55.1]} 26. Rgd4 {[%clk 0:02:08.6]}
26... Rbc8 {[%clk 0:01:52.8]} 27. Qe2 {[%clk 0:02:08.3]} 27... Re8 {[%clk
0:01:44.4]} 28. Qe5 {[%clk 0:02:02.4]} 28... Qc6+ {[%clk 0:01:42.7]} 29. Kg1
{[%clk 0:02:00.1]} 29... Qd7 {[%clk 0:01:41.2]} 30. h4 {[%clk 0:01:57.4]} 30...
Rc6 {[%clk 0:01:36.8]} 31. b4 {[%clk 0:01:54.9]} 31... Rcc8 {[%clk 0:01:36.2]}
32. Kh2 {[%clk 0:01:50]} 32... Rc2 {[%clk 0:01:35.5]} 33. R1d2 {[%clk
0:01:45.6]} 33... Rxd2 {[%clk 0:01:34.3]} 34. Rxd2 {[%clk 0:01:46.5]} 34... Rc8
{[%clk 0:01:34.1]} 35. b5 {[%clk 0:01:44.5]} 35... Rc5 {[%clk 0:01:33.3]} 36.
Qb2 {[%clk 0:01:44.5]} 36... Rxb5 {[%clk 0:01:32.8]} 37. Qxb5 {[%clk 0:01:42.3]}
37... Qxb5 {[%clk 0:01:22.9]} 38. d7 {[%clk 0:01:42.4]} 1-0

[Event "*** Titled Tuesday Blitz"]
[Site "Chess.com"]
[Date "2021.02.02"]
[Round "3"]
[White "Noam_Vitenberg"]
[Black "cassoulet"]
[Result "0-1"]
[WhiteElo "2505"]
[BlackElo "2763"]
[TimeControl "180+1"]
[EndTime "10:29:01 PST"]
[Termination "cassoulet won by checkmate"]

1. Nf3 {[%clk 0:03:00.9]} 1... Nf6 {[%clk 0:02:59.5]} 2. e3 {[%clk 0:02:51.4]}
2... d5 {[%clk 0:02:59.3]} 3. Be2 {[%clk 0:02:51.5]} 3... g6 {[%clk 0:02:59.8]}
4. O-O {[%clk 0:02:52]} 4... Bg7 {[%clk 0:03:00.7]} 5. d4 {[%clk 0:02:50.1]}
5... O-O {[%clk 0:03:01.6]} 6. c4 {[%clk 0:02:50]} 6... dxc4 {[%clk 0:03:00.2]}
7. Bxc4 {[%clk 0:02:49.3]} 7... a6 {[%clk 0:03:01.1]} 8. Nc3 {[%clk 0:02:48.8]}
8... b5 {[%clk 0:03:00.8]} 9. Be2 {[%clk 0:02:46.9]} 9... Bb7 {[%clk 0:03:01.2]}
10. b3 {[%clk 0:02:46.7]} 10... Nbd7 {[%clk 0:03:01.1]} 11. Bb2 {[%clk
0:02:46.9]} 11... c5 {[%clk 0:03:01.3]} 12. Rc1 {[%clk 0:02:45.9]} 12... Rc8
{[%clk 0:03:00.5]} 13. Qd2 {[%clk 0:02:24.5]} 13... Qa5 {[%clk 0:02:58.3]} 14.
Rfd1 {[%clk 0:02:19.3]} 14... Rfd8 {[%clk 0:02:56]} 15. Qe1 {[%clk 0:02:18]}
15... c4 {[%clk 0:02:37.3]} 16. bxc4 {[%clk 0:02:04.9]} 16... b4 {[%clk
0:02:37.2]} 17. Nd5 {[%clk 0:01:51.5]} 17... Bxd5 {[%clk 0:02:32.5]} 18. cxd5
{[%clk 0:01:52.4]} 18... Qxa2 {[%clk 0:02:32.6]} 19. Qd2 {[%clk 0:00:42.9]}
19... Ne4 {[%clk 0:02:20.3]} 20. Rxc8 {[%clk 0:00:25.9]} 20... Rxc8 {[%clk
0:02:18.5]} 21. Qxb4 {[%clk 0:00:25.5]} 21... Rb8 {[%clk 0:02:15.6]} 22. Qxe7
{[%clk 0:00:25.8]} 22... Qxb2 {[%clk 0:02:14.5]} 23. Bxa6 {[%clk 0:00:20.3]}
23... Qxf2+ {[%clk 0:02:13]} 24. Kh1 {[%clk 0:00:19.1]} 24... Qxe3 {[%clk
0:02:12.1]} 25. Re1 {[%clk 0:00:02.7]} 25... Nf2+ {[%clk 0:02:10]} 26. Kg1
{[%clk 0:00:03.1]} 26... Nh3+ {[%clk 0:02:08.7]} 27. Kh1 {[%clk 0:00:02.9]}
27... Qg1+ {[%clk 0:02:08.9]} 28. Rxg1 {[%clk 0:00:01.7]} 28... Nf2# {[%clk
0:02:09.8]} 0-1

[Event "*** Titled Tuesday Blitz"]
[Site "Chess.com"]
[Date "2021.02.02"]
[Round "3"]
[White "PSvidler"]
[Black "temiksmozg"]
[Result "1/2-1/2"]
[WhiteElo "2893"]
[BlackElo "2612"]
[TimeControl "180+1"]
[EndTime "10:29:05 PST"]
[Termination "Game drawn by agreement"]

1. Nf3 {[%clk 0:03:00.9]} 1... d5 {[%clk 0:02:52.3]} 2. g3 {[%clk 0:02:47.5]}
2... Nf6 {[%clk 0:02:49.2]} 3. Bg2 {[%clk 0:02:46.9]} 3... Bg4 {[%clk
0:02:49.5]} 4. O-O {[%clk 0:02:45.9]} 4... c6 {[%clk 0:02:49.6]} 5. c4 {[%clk
0:02:42.9]} 5... e6 {[%clk 0:02:38.6]} 6. Qb3 {[%clk 0:02:39.3]} 6... Qb6 {[%clk
0:02:36]} 7. d3 {[%clk 0:02:37.7]} 7... Qxb3 {[%clk 0:02:23]} 8. axb3 {[%clk
0:02:36.5]} 8... Nbd7 {[%clk 0:02:22.7]} 9. Be3 {[%clk 0:02:26.4]} 9... a6
{[%clk 0:02:22.5]} 10. Nc3 {[%clk 0:02:24.9]} 10... Bc5 {[%clk 0:02:14.1]} 11.
Bxc5 {[%clk 0:02:22.8]} 11... Nxc5 {[%clk 0:02:15]} 12. b4 {[%clk 0:02:23.3]}
12... Nb3 {[%clk 0:02:12.9]} 13. Ra3 {[%clk 0:01:52.1]} 13... Bxf3 {[%clk
0:02:03.6]} 14. Bxf3 {[%clk 0:01:53]} 14... dxc4 {[%clk 0:02:02.8]} 15. b5
{[%clk 0:01:45.1]} 15... O-O {[%clk 0:01:56.1]} 16. bxc6 {[%clk 0:01:42.6]}
16... bxc6 {[%clk 0:01:53.2]} 17. Bxc6 {[%clk 0:01:42.1]} 17... Rab8 {[%clk
0:01:49.8]} 18. Rd1 {[%clk 0:01:13.6]} 18... Nd4 {[%clk 0:01:31.7]} 19. Rxa6
{[%clk 0:01:00.1]} 19... cxd3 {[%clk 0:01:24.1]} 20. Rxd3 {[%clk 0:00:56.5]}
20... Nxc6 {[%clk 0:01:24.1]} 21. Rxc6 {[%clk 0:00:54.9]} 21... Rxb2 {[%clk
0:01:24.5]} 22. Kg2 {[%clk 0:00:47.8]} 22... h5 {[%clk 0:01:22.5]} 23. h3 {[%clk
0:00:45]} 1/2-1/2

[Event "*** Titled Tuesday Blitz"]
[Site "Chess.com"]
[Date "2021.02.02"]
[Round "3"]
[White "MillyNeuf"]
[Black "MoreChessJulia"]
[Result "0-1"]
[WhiteElo "2336"]
[BlackElo "2157"]
[TimeControl "180+1"]
[EndTime "10:29:05 PST"]
[Termination "MoreChessJulia won by resignation"]

1. e4 {[%clk 0:03:00.9]} 1... g6 {[%clk 0:02:59.3]} 2. d4 {[%clk 0:02:56.3]}
2... Bg7 {[%clk 0:02:58.9]} 3. Nc3 {[%clk 0:02:55]} 3... c5 {[%clk 0:02:58.6]}
4. Be3 {[%clk 0:02:54.3]} 4... Nc6 {[%clk 0:02:56.5]} 5. Nf3 {[%clk 0:02:54.6]}
5... cxd4 {[%clk 0:02:55.6]} 6. Nxd4 {[%clk 0:02:55.5]} 6... Nf6 {[%clk
0:02:55.2]} 7. Nxc6 {[%clk 0:02:55.8]} 7... bxc6 {[%clk 0:02:54.1]} 8. e5 {[%clk
0:02:56]} 8... Ng8 {[%clk 0:02:45.2]} 9. f4 {[%clk 0:02:55.4]} 9... e6 {[%clk
0:02:44.4]} 10. Bc5 {[%clk 0:02:51.5]} 10... Ne7 {[%clk 0:02:43.6]} 11. Bd3
{[%clk 0:02:24.3]} 11... O-O {[%clk 0:02:42.3]} 12. Qf3 {[%clk 0:02:20.5]} 12...
f6 {[%clk 0:02:41.1]} 13. Qe4 {[%clk 0:01:32.7]} 13... fxe5 {[%clk 0:02:35.5]}
14. fxe5 {[%clk 0:01:33.6]} 14... Rf5 {[%clk 0:02:31.6]} 15. O-O-O {[%clk
0:01:28.9]} 15... Rxe5 {[%clk 0:02:30]} 16. Qb4 {[%clk 0:01:26.7]} 16... Nd5
{[%clk 0:02:26.6]} 17. Nxd5 {[%clk 0:01:25.9]} 17... Rxd5 {[%clk 0:02:22.6]} 18.
Bc4 {[%clk 0:01:12.7]} 18... Qg5+ {[%clk 0:02:20.1]} 19. Kb1 {[%clk 0:01:09.6]}
19... Rxc5 {[%clk 0:02:19.1]} 20. h4 {[%clk 0:00:56.3]} 20... Qe5 {[%clk
0:02:17.7]} 21. c3 {[%clk 0:00:09.6]} 21... Rb8 {[%clk 0:02:07.8]} 22. Qa4
{[%clk 0:00:03.5]} 22... Rxb2+ {[%clk 0:02:05.1]} 23. Kxb2 {[%clk 0:00:03.3]}
23... Qxc3+ {[%clk 0:02:03.9]} 0-1

[Event "*** Titled Tuesday Blitz"]
[Site "Chess.com"]
[Date "2021.02.02"]
[Round "3"]
[White "LileKoridze"]
[Black "mikolka1985"]
[Result "0-1"]
[WhiteElo "2378"]
[BlackElo "2567"]
[TimeControl "180+1"]
[EndTime "10:29:12 PST"]
[Termination "mikolka1985 won by resignation"]

1. d4 {[%clk 0:03:00.9]} 1... Nf6 {[%clk 0:02:59.3]} 2. c4 {[%clk 0:03:01.1]}
2... e6 {[%clk 0:02:59.6]} 3. Nf3 {[%clk 0:02:58]} 3... d5 {[%clk 0:02:59.3]} 4.
g3 {[%clk 0:02:58]} 4... dxc4 {[%clk 0:02:58.9]} 5. Bg2 {[%clk 0:02:57.4]} 5...
Bb4+ {[%clk 0:02:59.1]} 6. Bd2 {[%clk 0:02:57.4]} 6... a5 {[%clk 0:02:58.9]} 7.
O-O {[%clk 0:02:57.4]} 7... O-O {[%clk 0:02:58.6]} 8. Bg5 {[%clk 0:02:48.9]}
8... h6 {[%clk 0:02:54.2]} 9. Bxf6 {[%clk 0:02:48.9]} 9... Qxf6 {[%clk
0:02:53.7]} 10. Qc2 {[%clk 0:02:39.1]} 10... Nc6 {[%clk 0:02:17.4]} 11. Qxc4
{[%clk 0:02:33.1]} 11... e5 {[%clk 0:02:12.2]} 12. d5 {[%clk 0:01:50.7]} 12...
Nb8 {[%clk 0:02:08.1]} 13. Qxc7 {[%clk 0:00:52.1]} 13... e4 {[%clk 0:02:05.6]}
14. Nfd2 {[%clk 0:00:27.9]} 14... Qxb2 {[%clk 0:02:03.9]} 15. a3 {[%clk
0:00:14]} 15... Bxd2 {[%clk 0:01:57.9]} 16. Nxd2 {[%clk 0:00:13.9]} 16... Qxd2
{[%clk 0:01:57.7]} 17. Bxe4 {[%clk 0:00:14.5]} 17... Qd4 {[%clk 0:01:54.3]} 18.
Bg2 {[%clk 0:00:13.8]} 18... Na6 {[%clk 0:01:53.7]} 19. Qc2 {[%clk 0:00:13.6]}
19... Bd7 {[%clk 0:01:49.9]} 20. Rad1 {[%clk 0:00:09.1]} 20... Qc5 {[%clk
0:01:48.9]} 21. Qb3 {[%clk 0:00:08.4]} 21... Qd6 {[%clk 0:01:46.6]} 22. Qxb7
{[%clk 0:00:05.9]} 22... Rfb8 {[%clk 0:01:45.5]} 0-1

[Event "*** Titled Tuesday Blitz"]
[Site "Chess.com"]
[Date "2021.02.02"]
[Round "3"]
[White "Treasurechess777"]
[Black "Virgo15"]
[Result "0-1"]
[WhiteElo "2405"]
[BlackElo "2605"]
[TimeControl "180+1"]
[EndTime "10:29:15 PST"]
[Termination "Virgo15 won by resignation"]

1. Nf3 {[%clk 0:03:00.9]} 1... Nf6 {[%clk 0:02:59.7]} 2. b3 {[%clk 0:03:01.1]}
2... a5 {[%clk 0:02:57]} 3. Bb2 {[%clk 0:03:00.2]} 3... a4 {[%clk 0:02:57]} 4.
b4 {[%clk 0:03:00.6]} 4... e6 {[%clk 0:02:54.6]} 5. a3 {[%clk 0:03:00.2]} 5...
b6 {[%clk 0:02:55]} 6. e3 {[%clk 0:03:00.4]} 6... Bb7 {[%clk 0:02:55.4]} 7. d4
{[%clk 0:02:55.7]} 7... Be7 {[%clk 0:02:55.7]} 8. c4 {[%clk 0:02:55.9]} 8... O-O
{[%clk 0:02:56]} 9. Bd3 {[%clk 0:02:56.4]} 9... d5 {[%clk 0:02:56.1]} 10. c5
{[%clk 0:02:56]} 10... bxc5 {[%clk 0:02:54.1]} 11. bxc5 {[%clk 0:02:55.6]} 11...
Ba6 {[%clk 0:02:54.6]} 12. O-O {[%clk 0:02:54.8]} 12... Bxd3 {[%clk 0:02:52.7]}
13. Qxd3 {[%clk 0:02:55.1]} 13... Nc6 {[%clk 0:02:52]} 14. Nbd2 {[%clk
0:02:46.8]} 14... Qb8 {[%clk 0:02:44.7]} 15. Bc3 {[%clk 0:02:46.4]} 15... Qa7
{[%clk 0:02:43.8]} 16. Rab1 {[%clk 0:02:34.6]} 16... Rfb8 {[%clk 0:02:44.1]} 17.
e4 {[%clk 0:02:33.5]} 17... dxe4 {[%clk 0:02:36.1]} 18. Nxe4 {[%clk 0:02:33.5]}
18... Rb3 {[%clk 0:02:29.6]} 19. Neg5 {[%clk 0:01:05.1]} 19... h6 {[%clk
0:02:23]} 20. Nh3 {[%clk 0:00:27.2]} 20... Qa6 {[%clk 0:02:14.9]} 21. Qxa6
{[%clk 0:00:13.1]} 21... Rxa6 {[%clk 0:02:15.8]} 22. Bb4 {[%clk 0:00:11.8]}
22... Nd5 {[%clk 0:02:08.2]} 23. Rxb3 {[%clk 0:00:05]} 23... axb3 {[%clk
0:02:09.1]} 24. Rb1 {[%clk 0:00:05.4]} 24... Ncxb4 {[%clk 0:02:08.8]} 25. axb4
{[%clk 0:00:05.8]} 25... b2 {[%clk 0:02:07.1]} 26. Nd2 {[%clk 0:00:04.9]} 26...
Ra2 {[%clk 0:02:00.2]} 27. b5 {[%clk 0:00:04.6]} 27... Nc3 {[%clk 0:02:00.5]}
28. Kf1 {[%clk 0:00:04.4]} 28... Nxb1 {[%clk 0:02:00.1]} 0-1

[Event "*** Titled Tuesday Blitz"]
[Site "Chess.com"]
[Date "2021.02.02"]
[Round "3"]
[White "imdvb6307"]
[Black "exoticprincess"]
[Result "0-1"]
[WhiteElo "2372"]
[BlackElo "2851"]
[TimeControl "180+1"]
[EndTime "10:29:16 PST"]
[Termination "exoticprincess won by resignation"]

1. c4 {[%clk 0:02:59.5]} 1... c6 {[%clk 0:03:00]} 2. d4 {[%clk 0:02:58.7]} 2...
d5 {[%clk 0:03:00.9]} 3. cxd5 {[%clk 0:02:58.6]} 3... cxd5 {[%clk 0:03:00.7]} 4.
Nc3 {[%clk 0:02:58.2]} 4... Nc6 {[%clk 0:03:01.6]} 5. Bf4 {[%clk 0:02:57.8]}
5... Nf6 {[%clk 0:03:01.8]} 6. e3 {[%clk 0:02:56.3]} 6... Bd7 {[%clk 0:03:01.7]}
7. Nf3 {[%clk 0:02:42.5]} 7... e6 {[%clk 0:03:01.8]} 8. Rc1 {[%clk 0:02:40.9]}
8... Be7 {[%clk 0:03:02]} 9. Bd3 {[%clk 0:02:40.3]} 9... O-O {[%clk 0:03:02.4]}
10. O-O {[%clk 0:02:39.9]} 10... Qa5 {[%clk 0:03:03.1]} 11. Nd2 {[%clk
0:02:33.7]} 11... Rfc8 {[%clk 0:03:02.6]} 12. Nb3 {[%clk 0:02:32.8]} 12... Qd8
{[%clk 0:03:03.1]} 13. Na4 {[%clk 0:02:27.4]} 13... Nb4 {[%clk 0:03:01]} 14.
Nac5 {[%clk 0:02:18.3]} 14... Nxd3 {[%clk 0:03:00.5]} 15. Qxd3 {[%clk
0:02:09.9]} 15... Bc6 {[%clk 0:03:00.5]} 16. Bg5 {[%clk 0:02:05.3]} 16... h6
{[%clk 0:02:58.9]} 17. Bh4 {[%clk 0:02:04.7]} 17... b6 {[%clk 0:02:57.4]} 18.
Na6 {[%clk 0:02:00.7]} 18... Qd7 {[%clk 0:02:57.4]} 19. Rxc6 {[%clk 0:01:38.1]}
19... Rxc6 {[%clk 0:02:55.7]} 20. Qb5 {[%clk 0:01:31.3]} 20... Rac8 {[%clk
0:02:46.4]} 21. a4 {[%clk 0:01:27.2]} 21... Qd8 {[%clk 0:02:42.8]} 22. Nb8
{[%clk 0:01:23.5]} 22... Rc2 {[%clk 0:02:39.7]} 23. Na1 {[%clk 0:01:13.3]} 23...
Rc1 {[%clk 0:02:38.2]} 24. Na6 {[%clk 0:01:10.4]} 24... Rxf1+ {[%clk 0:02:37.4]}
25. Qxf1 {[%clk 0:01:08.1]} 25... Ne4 {[%clk 0:02:37.5]} 26. Bxe7 {[%clk
0:01:01.7]} 26... Qxe7 {[%clk 0:02:38.4]} 27. f3 {[%clk 0:00:49.6]} 27... Nd2
{[%clk 0:02:38.2]} 28. Qd1 {[%clk 0:00:39.3]} 28... Nc4 {[%clk 0:02:37.7]} 29.
Qe2 {[%clk 0:00:39.2]} 29... Na5 {[%clk 0:02:27.9]} 30. Nc2 {[%clk 0:00:34]}
30... Rc4 {[%clk 0:02:21.5]} 31. b4 {[%clk 0:00:29.8]} 31... Qb7 {[%clk
0:02:18.2]} 32. b5 {[%clk 0:00:16.2]} 32... Rxa4 {[%clk 0:02:16.3]} 33. Ncb4
{[%clk 0:00:13.2]} 33... Qc8 {[%clk 0:02:15.4]} 34. Nc6 {[%clk 0:00:09.7]} 34...
Nxc6 {[%clk 0:02:14.4]} 35. Qc2 {[%clk 0:00:08.1]} 35... Rc4 {[%clk 0:02:14.5]}
0-1

[Event "*** Titled Tuesday Blitz"]
[Site "Chess.com"]
[Date "2021.02.02"]
[Round "3"]
[White "Jospem"]
[Black "bogcsab"]
[Result "1-0"]
[WhiteElo "3044"]
[BlackElo "2171"]
[TimeControl "180+1"]
[EndTime "10:29:20 PST"]
[Termination "Jospem won by resignation"]

1. e4 {[%clk 0:03:00.9]} 1... d6 {[%clk 0:03:00.2]} 2. d4 {[%clk 0:03:00.6]}
2... Nf6 {[%clk 0:03:00.5]} 3. Nc3 {[%clk 0:03:01.3]} 3... g6 {[%clk 0:03:00.9]}
4. f3 {[%clk 0:03:01.4]} 4... c6 {[%clk 0:02:59.8]} 5. a4 {[%clk 0:03:00.4]}
5... Nbd7 {[%clk 0:02:58.8]} 6. Be3 {[%clk 0:03:00.4]} 6... e5 {[%clk
0:02:57.2]} 7. Qd2 {[%clk 0:03:00.5]} 7... Qc7 {[%clk 0:02:55.8]} 8. Nge2 {[%clk
0:02:59.5]} 8... Nb6 {[%clk 0:02:52.2]} 9. b3 {[%clk 0:02:56.9]} 9... a5 {[%clk
0:02:45.6]} 10. O-O-O {[%clk 0:02:53.2]} 10... Be6 {[%clk 0:02:41.8]} 11. h4
{[%clk 0:02:41.7]} 11... O-O-O {[%clk 0:02:38.6]} 12. dxe5 {[%clk 0:02:39.4]}
12... Ne8 {[%clk 0:02:09.6]} 13. Qd4 {[%clk 0:02:23.1]} 13... c5 {[%clk
0:01:36.3]} 14. exd6 {[%clk 0:02:12.2]} 14... cxd4 {[%clk 0:01:11.6]} 15. dxc7
{[%clk 0:02:12]} 15... Nxc7 {[%clk 0:01:09.1]} 16. Nxd4 {[%clk 0:02:12.2]} 16...
Nd7 {[%clk 0:01:05.6]} 17. Nxe6 {[%clk 0:02:05.2]} 17... Nxe6 {[%clk 0:01:01.9]}
18. Bc4 {[%clk 0:02:05.4]} 18... Bg7 {[%clk 0:00:52.8]} 19. Nb5 {[%clk
0:02:03.7]} 19... Ne5 {[%clk 0:00:39.4]} 20. Bxe6+ {[%clk 0:01:57.3]} 20... fxe6
{[%clk 0:00:38.3]} 21. Bb6 {[%clk 0:01:53.8]} 21... Bh6+ {[%clk 0:00:29]} 22.
Kb1 {[%clk 0:01:52.9]} 22... Rd2 {[%clk 0:00:21.1]} 23. Rxd2 {[%clk 0:01:48.3]}
23... Bxd2 {[%clk 0:00:20.3]} 24. Bd4 {[%clk 0:01:43.9]} 24... Bf4 {[%clk
0:00:17.9]} 25. Nd6+ {[%clk 0:01:44.5]} 25... Kc7 {[%clk 0:00:14.7]} 26. Bxe5
{[%clk 0:01:44.9]} 26... Bxe5 {[%clk 0:00:14.2]} 27. Nf7 {[%clk 0:01:45.5]} 1-0

[Event "*** Titled Tuesday Blitz"]
[Site "Chess.com"]
[Date "2021.02.02"]
[Round "3"]
[White "Tiradini007"]
[Black "Manukyan_Artak"]
[Result "0-1"]
[WhiteElo "2211"]
[BlackElo "2435"]
[TimeControl "180+1"]
[EndTime "10:29:25 PST"]
[Termination "Manukyan_Artak won by resignation"]

1. e4 {[%clk 0:03:00.9]} 1... c6 {[%clk 0:02:59.3]} 2. d4 {[%clk 0:03:00.2]}
2... d5 {[%clk 0:03:00.2]} 3. Nc3 {[%clk 0:02:59.9]} 3... dxe4 {[%clk
0:02:59.9]} 4. Nxe4 {[%clk 0:02:59.8]} 4... Nf6 {[%clk 0:03:00.8]} 5. Ng3 {[%clk
0:02:59.2]} 5... Bg4 {[%clk 0:02:59.9]} 6. Be2 {[%clk 0:02:56.5]} 6... Bxe2
{[%clk 0:02:59.6]} 7. N1xe2 {[%clk 0:02:56.8]} 7... e6 {[%clk 0:03:00.5]} 8. O-O
{[%clk 0:02:54.4]} 8... Bd6 {[%clk 0:03:00.6]} 9. c3 {[%clk 0:02:51.3]} 9...
Nbd7 {[%clk 0:02:59.7]} 10. Bf4 {[%clk 0:02:50.7]} 10... Bxf4 {[%clk 0:02:56.6]}
11. Nxf4 {[%clk 0:02:50.3]} 11... O-O {[%clk 0:02:57.5]} 12. Nd3 {[%clk
0:02:49.9]} 12... b5 {[%clk 0:02:55.4]} 13. Qe2 {[%clk 0:02:45.2]} 13... a5
{[%clk 0:02:54.3]} 14. Ne4 {[%clk 0:02:42]} 14... Nxe4 {[%clk 0:02:54]} 15. Qxe4
{[%clk 0:02:41.4]} 15... Qb6 {[%clk 0:02:54]} 16. Ne5 {[%clk 0:02:30.9]} 16...
Nxe5 {[%clk 0:02:52.9]} 17. Qxe5 {[%clk 0:02:29.4]} 17... Rfd8 {[%clk
0:02:50.2]} 18. Rad1 {[%clk 0:02:21.2]} 18... Rd5 {[%clk 0:02:49.5]} 19. Qe4
{[%clk 0:02:19.7]} 19... Rad8 {[%clk 0:02:47.7]} 20. Qg4 {[%clk 0:02:10.6]}
20... b4 {[%clk 0:02:33.8]} 21. Qe2 {[%clk 0:01:42.8]} 21... c5 {[%clk
0:02:08.6]} 22. dxc5 {[%clk 0:01:31.4]} 22... Qxc5 {[%clk 0:02:08.3]} 23. cxb4
{[%clk 0:01:22.5]} 23... axb4 {[%clk 0:02:06.8]} 24. h3 {[%clk 0:01:09.2]} 24...
h5 {[%clk 0:02:02.8]} 25. Rxd5 {[%clk 0:01:01]} 25... Qxd5 {[%clk 0:02:00.7]}
26. b3 {[%clk 0:00:49.4]} 26... g6 {[%clk 0:01:43.5]} 27. Rc1 {[%clk 0:00:48.2]}
27... Qd2 {[%clk 0:01:41.1]} 28. Rc2 {[%clk 0:00:46.6]} 28... Qxe2 {[%clk
0:01:32.2]} 29. Rxe2 {[%clk 0:00:45.8]} 29... Kf8 {[%clk 0:01:30.1]} 30. Re4
{[%clk 0:00:44.9]} 30... Rb8 {[%clk 0:01:29.6]} 31. Kf1 {[%clk 0:00:43.7]} 31...
Ke7 {[%clk 0:01:29.4]} 32. Ke2 {[%clk 0:00:44]} 32... f5 {[%clk 0:01:29.5]} 33.
Kd3 {[%clk 0:00:44.2]} 33... fxe4+ {[%clk 0:01:29.3]} 0-1